[Event "MCC Labor Day Schev 2024"]
[Site "New York"]
[Date "2024.09.03"]
[Round "9.7"]
[White "Nasta, Kiren Vivek"]
[Black "Sloan, Jed"]
[Result "0-1"]
[ECO "B48"]
[WhiteElo "2148"]
[BlackElo "2039"]
[Annotator "TA"]
[PlyCount "66"]
[EventDate "2024.08.28"]
[EventType "schev"]
[EventCountry "USA"]
[SourceTitle "playchess.com"]
[Source "ChessBase"]
[SourceQuality "1"]
[TimeControl "5400+30"]

{[%evp 11,65,4,52,19,34,25,45,18,17,25,22,21,20,25,46,33,45,35,29,21,20,0,14,13,20,0,0,-28,0,0,-14,-16,-4,-44,-32,-88,-49,-132,-164,-146,-131,-335,-328,-781,-786,-821,-674,-29982,-1064,-29983,-29984,-29984,-29985,-29983,-29984,-29981]} 1. e4 {[%emt 0:00:02]} c5 {[%emt 0:00:44]} 2. Nf3 {[%emt 0:00:08]} a6 {[%emt 0:00:02]} 3. Nc3 {[%emt 0:07:18]} e6 {[%emt 0:04:42]} 4. d4 {[%emt 0:00:39]} cxd4 {[%emt 0:00:17]} 5. Nxd4 {[%emt 0:00:07]} Qc7 {[%emt 0:00:35]} 6. Be3 {[%emt 0:02:09]} Nc6 {[%emt 0:00:08]} (6... Nf6 $11) 7. Qf3 {[%emt 0:00:24]} Bd6 {[%emt 0:00:55]} 8. O-O-O {[%emt 0:00:41]} Be5 $1 {[%emt 0:00:20]} 9. Nxc6 {[%emt 0:00:12] White is slightly better.} bxc6 {[%emt 0:03:57]} 10. Bd4 {[%emt 0:00:41]} Bxd4 {[%emt 0:07:27]} 11. Rxd4 {[%emt 0:00:06]} Nf6 {[%emt 0:00:37]} 12. Qe3 {[%emt 0:19:41]} e5 {[%emt 0:06:13]} 13. Rd1 {[%emt 0:01:05] Threatens to win with Qc5.} O-O {[%emt 0:03:32]} 14. Bc4 {[%emt 0:02:41]} d6 {[%emt 0:04:15] Repels Qc5} 15. f3 {[%emt 0:02:03]} Be6 {[%emt 0:02:29]} 16. Bb3 {[%emt 0:05:14]} Rfd8 {[%emt 0:05:38]} 17. Rhe1 {[%emt 0:02:53]} Nd7 {[%emt 0:06:39]} 18. h4 {[%emt 0:03:28]} Nc5 {[%emt 0:03:14]} 19. h5 {[%emt 0:02:32]} Nxb3+ {[%emt 0:04:46]} 20. axb3 {[%emt 0:00:54]} f6 {[%emt 0:06:57]} 21. h6 {[%emt 0:05:52]} d5 {[%emt 0:02:43]} 22. Qc5 {[%emt 0:01:18]} d4 {[%emt 0:00:37]} 23. Na4 {[%emt 0:02:37]} ({Better is} 23. Nb1 $15) 23... Rab8 {[%emt 0:02:46]} 24. hxg7 {[%emt 0:00:26]} (24. Qa3 $1 $15) 24... Rb5 $17 {[%emt 0:32:57]} 25. Qa3 {[%emt 0:39:49]} c5 {[%emt 0:00:00][%cal Oc5c4] Black is more active.} 26. c4 $2 {[%emt 0:00:00] [#] This move loses the game for White.} (26. g4 $17 {might work better.}) 26... Rb4 {[%emt 0:00:00][%cal Od8b8]} 27. Kd2 $2 {[%emt 0:00:00]} (27. Kc2) 27... Rdb8 $19 {[%emt 0:00:00]} 28. Ke2 {[%emt 0:00:00]} Qxg7 {[%emt 0:00:00]} 29. Nxc5 {[%emt 0:00:00]} Qxg2+ {[%emt 0:00:00]} 30. Kd3 {[%emt 0:00:00] [#]} Bxc4+ $1 {[%emt 0:00:00][%mdl 512] Black mates.} 31. bxc4 {[%emt 0:00:00]} Qxf3+ {[%emt 0:00:00]} 32. Kc2 {[%emt 0:00:00]} Rxb2+ {[%emt 0:00:00]} 33. Qxb2 {[%emt 0:00:00]} Qf2+ {[%emt 0:00:00] Weighted Error Value: White=0.85/Black=0.13 (very precise) .  Loses game:     	White=1     	---        Mistake:       	White=3     	---        Inaccurate:     	White=3     	Black=2      OK:         	White=3     	Black=8      Best:        	---       	Black=1      Strong:       	---       	Black=1} 0-1

[Event "MCC Labor Day Schev 2024"]
[Site "New York"]
[Date "2024.09.03"]
[Round "9.8"]
[White "Zhao, Alex"]
[Black "Khodzhamkuliev, Bahadur"]
[Result "1/2-1/2"]
[ECO "A38"]
[WhiteElo "2043"]
[BlackElo "2187"]
[Annotator "TA"]
[PlyCount "33"]
[EventDate "2024.08.28"]
[EventType "schev"]
[EventCountry "USA"]
[SourceTitle "playchess.com"]
[Source "ChessBase"]
[SourceQuality "1"]
[TimeControl "5400+30"]

{[%evp 15,33,16,17,12,49,62,45,41,41,39,55,50,50,41,41,39,41,44,41,37]} 1. Nf3 {[%emt 0:02:59]} d6 {[%emt 0:00:14]} 2. g3 {[%emt 0:02:10]} c5 {[%emt 0:01:12]} 3. Bg2 {[%emt 0:00:59]} Nc6 {[%emt 0:00:14]} 4. O-O {[%emt 0:01:13]} Nf6 {[%emt 0:00:10]} 5. c4 {[%emt 0:02:39]} g6 {[%emt 0:00:37]} 6. Nc3 {[%emt 0:00:22]} Bg7 {[%emt 0:00:14]} 7. a3 {[%emt 0:02:06]} O-O {[%emt 0:01:42]} 8. Rb1 {[%emt 0:01:31]} Bf5 {[%emt 0:03:18]} 9. d3 {[%emt 0:01:19]} Nd7 {[%emt 0:07:30]} 10. Bd2 {[%emt 0:04:55] White is slightly better.} a5 {[%emt 0:02:19]} 11. Qc1 {[%emt 0:04:10]} Rb8 {[%emt 0:04:47]} 12. Bh6 {[%emt 0:02:32]} Bg4 {[%emt 0:03:13]} 13. Bxg7 {[%emt 0:08:03]} Kxg7 {[%emt 0:00:14]} 14. h3 {[%emt 0:05:04]} Bxf3 {[%emt 0:00:26]} 15. Bxf3 {[%emt 0:00:02]} e6 {[%emt 0:04:19]} 16. Nb5 {[%emt 0:05:36]} Qe7 {[%emt 0:07:31]} 17. Qc3+ {[%emt 0:03:45] Weighted Error Value: White=0.02 (flawless) /Black=0.05 (flawless) .  Inaccurate:     	---       	Black=1      OK:         	White=3     	Black=2} 1/2-1/2

[Event "MCC Labor Day Schev 2024"]
[Site "New York"]
[Date "2024.09.02"]
[Round "9.9"]
[White "Zaderman, Vitaly"]
[Black "Aravindakshan, Sahana"]
[Result "1/2-1/2"]
[ECO "A68"]
[WhiteElo "2093"]
[BlackElo "2003"]
[Annotator "TA"]
[PlyCount "39"]
[EventDate "2024.08.28"]
[EventType "schev"]
[EventCountry "USA"]
[SourceTitle "playchess.com"]
[Source "ChessBase"]
[SourceQuality "1"]
[TimeControl "5400+30"]

{[%evp 26,39,0,-12,11,-6,0,0,-7,-21,-21,-16,-24,-19,8,10]} 1. d4 {[%emt 0:13:17]} Nf6 {[%emt 0:00:04]} 2. c4 {[%emt 0:00:13]} g6 {[%emt 0:00:10]} 3. Nc3 {[%emt 0:00:08]} Bg7 {[%emt 0:00:03]} 4. e4 {[%emt 0:00:05]} d6 {[%emt 0:00:03]} 5. f4 {[%emt 0:00:09]} O-O {[%emt 0:00:25]} 6. Nf3 {[%emt 0:00:13][%cal Bg1f3,Bf3d2,Bd2c4][%mdl 32]} c5 {[%emt 0:00:31]} 7. d5 {[%emt 0:00:09]} e6 {[%emt 0:00:15]} 8. Be2 {[%emt 0:00:07]} exd5 {[%emt 0:00:18]} 9. cxd5 {[%emt 0:00:03]} Bg4 {[%emt 0:03:09]} 10. O-O {[%emt 0:00:24]} Nbd7 {[%emt 0:03:58]} 11. Nd2 {[%emt 0:00:21]} Bxe2 {[%emt 0:01:10]} 12. Qxe2 {[%emt 0:00:07]} Re8 {[%emt 0:07:57]} 13. Qf3 {[%emt 0:00:10]} a6 {[%emt 0:03:41]} 14. a4 $1 {[%emt 0:00:16]} Rb8 {[%emt 0:03:45]} 15. Nc4 {[%emt 0:00:51]} Qe7 {[%emt 0:11:07][%cal Rf6e4]} 16. Re1 {[%emt 0:00:16]} Qf8 {[%emt 0:15:47] With the idea ...b5.} ({But not} 16... b5 $6 17. axb5 axb5 18. Na5 $16) 17. a5 {[%emt 0:01:12]} b5 {[%emt 0:01:42]} 18. axb6 {[%emt 0:00:27]} Nxb6 {[%emt 0:00:15]} 19. Ne3 {[%emt 0:17:12]} Ra8 {[%emt 0:00:47]} 20. Bd2 {[%emt 0:06:27] Not much happened in this game.   Weighted Error Value: White=0.05 (flawless) /Black=0.10 (very precise) .  Inaccurate:     	---       	Black=1      OK:         	White=2     	Black=3      Best:        	White=1     	---} 1/2-1/2